Workbook

Sheet 공모제외
A1: 제3회 예천군 보조금심의위원회 추경편성심의 조서(공모제외)
Q2: (단위 : 천원)
A3: 부서명 | B3: 사업 분류 | C3: 보 조 사 업 명 | D3: 보 조 사 업 자 | E3: 과목명 | F3: 사 업 내 용 | G3: 2015년 지원액 | H3: 16년 신청액 | M3: 재원비율 | P3: 검토조정액 | R3: 심의조정액
H4: 계 | I4: 보조금 | L4: 자부담 | M4: 계 | N4: 보조금 | O4: 자부담 | P4: 1차(해당부서) | Q4: 2차(예산부서) | R4: 3차(위원회)
I5: 경정액 | J5: 기정액 | K5: 증감액
A6: 계 | C6: =SUBTOTAL(103,C7:C986) -> 54 | G6: =SUBTOTAL(9,G7:G986) -> 5,015,397 | H6: 7,467,811 | I6: 6,620,791 | J6: 4,965,061 | K6: 1,655,730 | L6: 847,020 | M6: =N6+O6 -> 100% | N6: =I6/H6 -> 89% | O6: =L6/H6 -> 11% | P6: =SUBTOTAL(9,P7:P986) -> 1,655,730 | Q6: =SUBTOTAL(9,Q7:Q986) -> 1,655,730 | R6: =SUBTOTAL(9,R7:R986) -> 1,655,730
A7: 주민복지과 소계 | C7: =SUBTOTAL(103,C8:C19) -> 12 | G7: =SUBTOTAL(9,G8:G19) -> 2,473,617 | H7: 2,868,414 | I7: 2,866,414 | J7: 2,704,598 | K7: 161,816 | L7: 2,000 | M7: =O7+N7 -> 100% | N7: =I7/H7 -> 99.9% | O7: =L7/H7 -> 0.1% | P7: =SUBTOTAL(9,P8:P19) -> 161,816 | Q7: =SUBTOTAL(9,Q8:Q19) -> 161,816 | R7: =SUBTOTAL(9,R8:R19) -> 161,816
A8: 주민복지과 | B8: 보조 | C8: 할매 할배의날 우수사업 지원 | D8: 군립풍양어린이집원장 | E8: 민간경상사업보조 | F8: 전통문화체험구입비(5종) : 10,000 | H8: =I8+L8 -> 10,000 | I8: 10,000 | K8: =I8-J8 -> 10,000 | M8: =N8+O8 -> 100% | N8: 100% | O8: 0% | P8: =K8 -> 10,000 | Q8: =P8 -> 10,000 | R8: 10,000
A9: 주민복지과 | B9: 자체 | C9: 대한노인회 예천군지회 운영비 | D9: 대한노인회 예천군지회장 | E9: 민간단체법정운영비보조 | F9: 운영비 : 3,000 | G9: 25,000 | H9: 28,000 | I9: 28,000 | J9: 25,000 | K9: 3,000 | M9: 100% | N9: 100% | O9: 0% | P9: 3,000 | Q9: 3,000 | R9: 3,000
A10: 주민복지과 | B10: 보조 | C10: 아이돌보미 지원 | D10: 예천군다문화가족지원센터 | E10: 사회복지사업보조 | F10: 돌봄지원 : 337,968 보 험 료 : 40,336 교 육 비 : 12,350 전담인건비 : 27,886 운 영 비 : 11,460 | G10: 378,918 | H10: 430,000 | I10: 430,000 | J10: 378,919 | K10: 51,081 | M10: 100% | N10: =I10/H10 -> 100% | O10: =L10/H10 -> 0% | P10: 51,081 | Q10: 51,081 | R10: 51,081
A11: 주민복지과 | B11: 자체 | C11: 어린이집 어울림한마당 | D11: 예천군어린이집연합회 | E11: 민간행사사업보조 | F11: 홍보비, 심사비, 재료비 : 2,000 공모전 시상금 등 : 4,000 어울림한마당행사비 등 : 6,000 | G11: 10,000 | H11: 12,000 | I11: 10,000 | K11: 10,000 | L11: 2,000 | M11: 100% | N11: 83% | O11: 17% | P11: 10,000 | Q11: 10,000 | R11: 10,000
A12: 주민복지과 | B12: 보조 | C12: 어린이집지원(시간연장형, 교재교구비,차량운영비, 교사근무환경개선비, 법인어린이집 지원) | D12: 꿈터우방어린이집 아이원어린이집 | E12: 사회복지사업보조 | F12: 어린이집 지원 : 555 | H12: =I12+L12 -> 555 | I12: 555 | K12: 555 | M12: 100% | N12: 100% | O12: 0% | P12: 555 | Q12: 555 | R12: 555
A13: 주민복지과 | B13: 보조 | C13: 다문화가족지원센터 운영 지원 | D13: 예천군다문화가족지원센터 | E13: 사회복지시설 법정운영비보조 | F13: 인건비 : 108,820 시설비 : 10,560 사업비 : 600 홍보비 : 1,100 기타운영비 : 14,974 | G13: 131,770 | H13: =I13+L13 -> 136,054 | I13: 136,054 | J13: 126,054 | K13: =I13-J13 -> 10,000 | M13: =N13+O13 -> 100% | N13: 100% | O13: 0% | P13: 10,000 | Q13: 10,000 | R13: 10,000
A14: 주민복지과 | B14: 보조 | C14: 다문화가족자녀 언어발달지원 | D14: 예천군다문화가족지원센터 | E14: 사회복지사업보조 | F14: 인건비 : 27,528 사업비 : 1,680 기타운영비 : 1,251 | G14: 30,172 | H14: =I14+L14 -> 30,459 | I14: 30,459 | J14: 29,456 | K14: =I14-J14 -> 1,003 | M14: =N14+O14 -> 100% | N14: 100% | O14: 0% | P14: 1,003 | Q14: 1,003 | R14: 1,003
A15: 주민복지과 | B15: 보조 | C15: 다문화가족 이중언어사업 | D15: 예천군다문화가족지원센터 | E15: 사회복지사업보조 | F15: 인건비 : 15,155 사업비 : 1,200 기타운영비 : 800 | G15: 16,250 | H15: 17,155 | I15: 17,155 | J15: 16,643 | K15: 512 | M15: 100% | N15: 100% | O15: 0% | P15: 512 | Q15: 512 | R15: 512
A16: 주민복지과 | B16: 보조 | C16: 통번역서비스사업 | D16: 예천군다문화가족지원센터 | E16: 사회복지사업보조 | F16: 인 건 비 : 16,583 공공요금 : 500 기타운영비 : 1,529 | G16: 17,682 | H16: 18,612 | I16: 18,612 | J16: 17,232 | K16: 1,380 | M16: 100% | N16: =I16/H16 -> 100% | O16: =L16/H16 -> 0% | P16: 1,380 | Q16: 1,380 | R16: 1,380
A17: 주민복지과 | B17: 보조 | C17: 영유아보육료지원(508명) | D17: 별도 통보 | E17: 사회복지사업보조 | F17: 보육료 508명 | G17: 1,841,855 | H17: 2,150,000 | I17: 2,150,000 | J17: 2,082,900 | K17: 67,100 | M17: 100% | N17: 100% | O17: 0% | P17: 67,100 | Q17: 67,100 | R17: 67,100
A18: 주민복지과 | B18: 보조 | C18: 다문화가족복지시설 종사자수당 | D18: 예천군다문화가족지원센터 | E18: 사회복지사업보조 | F18: 수당 : 11,760 | G18: 6,720 | H18: =I18+L18 -> 11,760 | I18: 11,760 | J18: 6,720 | K18: =I18-J18 -> 5,040 | M18: 100% | N18: 100% | O18: 0% | P18: 5,040 | Q18: 5,040 | R18: 5,040
A19: 주민복지과 | B19: 자체 | C19: 국민기초생활보장급여 (교육급여) 군 부담금 | D19: 도 교육청 | E19: 교육기관에대한보조 | F19: 교육비 : 23,819 | G19: 15,250 | H19: 23,819 | I19: 23,819 | J19: 21,674 | K19: 2,145 | M19: 100% | N19: 100% | O19: 0% | P19: 2,145 | Q19: 2,145 | R19: 2,145
A20: 총무과 소계 | C20: =SUBTOTAL(103,C21) -> 1 | G20: =SUBTOTAL(9,G21:G21) -> 0 | H20: =SUBTOTAL(9,H21) -> 82,156 | I20: =SUBTOTAL(9,I21) -> 82,156 | J20: 0 | K20: 82,156 | L20: 0 | M20: 100% | N20: 100% | O20: 0% | P20: 82,156 | Q20: 82,156 | R20: 82,156
A21: 총무과 | B21: 자체 | C21: 유치원 무상급식 지원사업 | D21: 예천초등학교병설유치원장 외 4명(별지조서) | E21: 민간경상사업보조 | F21: 2,300원 * 190일 * 188명 | H21: 82,156 | I21: 82,156 | K21: =I21 -> 82,156 | M21: =N21+O21 -> 100% | N21: =I21/H21 -> 100% | O21: =L21/H21 -> 0% | P21: 82,156 | Q21: =P21 -> 82,156 | R21: =Q21 -> 82,156
A22: 새마을경제과 소계 | C22: =SUBTOTAL(103,C23:C27) -> 5 | G22: =SUBTOTAL(9,G23:G27) -> 463,445 | H22: 655,618 | I22: 407,583 | J22: 313,333 | K22: 94,250 | L22: 248,035 | M22: =O22+N22 -> 100% | N22: =I22/H22 -> 62% | O22: =L22/H22 -> 38% | P22: =SUBTOTAL(9,P23:P27) -> 94,250 | Q22: =SUBTOTAL(9,Q23:Q27) -> 94,250 | R22: =SUBTOTAL(9,R23:R27) -> 94,250
A23: 새마을경제과 | B23: 보조 | C23: 건전생활실천순회교육 지원 | D23: 바르게살기운동예천군협의회 | E23: 민간경상사업보조 | F23: 1,650,000원 * 1식 | G23: 1,650 | H23: =I23+L23 -> 4,750 | I23: 1,650 | K23: =I23-J23 -> 1,650 | L23: 3,100 | M23: =N23+O23 -> 100% | N23: =I23/H23 -> 35% | O23: =L23/H23 -> 65% | P23: =I23 -> 1,650 | Q23: =P23 -> 1,650 | R23: 1,650
A24: 새마을경제과 | B24: 보조 | C24: 예천천문우주센터 시설보수 지원 | D24: 예천천문우주센터 | E24: 민간자본사업보조 | F24: 72,000,000원 * 1개소 | H24: =I24+L24 -> 72,000 | I24: 57,600 | K24: 57,600 | L24: 14,400 | M24: 100% | N24: 80% | O24: 20% | P24: 57,600 | Q24: 57,600 | R24: 57,600
A25: 새마을경제과 | B25: 보조 | C25: 2016년 향토뿌리기업 환경정비 지원 | D25: 예천풍양합동양조장 | E25: 민간자본사업보조 | F25: 5,800,000원 * 1개소 | H25: 5,800 | I25: 4,000 | K25: 4,000 | L25: 1,800 | M25: 100% | N25: 69% | O25: 31% | P25: 4,000 | Q25: 4,000 | R25: 4,000
A26: 새마을경제과 | B26: 보조 | C26: 사회적기업 등 사업개발비지원 | D26: 주식회사 행복드림 외 2 (별지조서) | E26: 민간경상사업보조 | F26: 81,000,000원 * 1식 | G26: 84,200 | H26: =I26+L26 -> 88,582 | I26: 81,000 | J26: 60,000 | K26: 21,000 | L26: 7,582 | M26: =N26+O26 -> 100% | N26: 91% | O26: 9% | P26: =K26 -> 21,000 | Q26: 21,000 | R26: 21,000
A27: 새마을경제과 | B27: 보조 | C27: 사회적기업 일자리창출 사업 | D27: 주식회사 행복드림 외 4 (별지조서) | E27: 민간경상사업보조 | F27: 263,333,000원 * 1식 | G27: 377,595 | H27: =I27+L27 -> 484,486 | I27: 263,333 | J27: 253,333 | K27: 10,000 | L27: 221,153 | M27: 100% | N27: 54% | O27: 46% | P27: =K27 -> 10,000 | Q27: 10,000 | R27: 10,000
A28: 문화관광과 소계 | C28: =SUBTOTAL(103,C29:C34) -> 6 | G28: =SUBTOTAL(9,G29:G34) -> 73,861 | H28: 415,992 | I28: 405,992 | J28: 16,861 | K28: 389,131 | L28: 10,000 | M28: =N28+O28 -> 100% | N28: =I28/H28 -> 98% | O28: =L28/H28 -> 2% | P28: =SUBTOTAL(9,P29:P34) -> 389,131 | Q28: =SUBTOTAL(9,Q29:Q34) -> 389,131 | R28: =SUBTOTAL(9,R29:R35) -> 389,131
A29: 문화관광과 | B29: 자체 | C29: 국악분야 예술강사 지원사업 | D29: 금수문화예술마을운영협의회 (경북문화예술교육지원센터) | E29: 민간경상사업보조 | F29: 강사료(초등 11개교, 중등 1개교) : 17,192 | G29: 16,861 | H29: =I29+L29 -> 17,192 | I29: 17,192 | J29: 16,861 | K29: =I29-J29 -> 331 | M29: =N29+O29 -> 100% | N29: =I29/H29 -> 100% | O29: =L29/H29 -> 0% | P29: =K29 -> 331 | Q29: =P29 -> 331 | R29: =Q29 -> 331
A30: 문화관광과 | B30: 자체 | C30: 예천유학사 책자 발간 | D30: 예천문화원 | E30: 민간경상사업보조 | F30: 책자제작 : 15,000 회의 기타 예비비 : 2,000 | G30: 37,000 | H30: =I30+L30 -> 17,000 | I30: 17,000 | K30: 17,000 | M30: 100% | N30: 100% | O30: 0% | P30: =K30 -> 17,000 | Q30: =P30 -> 17,000 | R30: =Q30 -> 17,000
A31: 문화관광과 | B31: 자체 | C31: 종무활동 지원 | D31: 예천불교총연합회 예천군기독교연합회 | E31: 민간경상사업보조 | F31: 석가탄신일 및 성탄 기념 등 | H31: =I31+L31 -> 50,000 | I31: 40,000 | K31: 40,000 | L31: 10,000 | M31: 100% | N31: 80% | O31: 20% | P31: 40,000 | Q31: 40,000 | R31: 40,000
A32: 문화관광과 | B32: 자체 | C32: 문화원 컴퓨터 구입 | D32: 예천문화원 | E32: 민간자본사업보조 | F32: 컴퓨터(2대) 구입 : 1,800 | H32: 1,800 | I32: 1,800 | K32: 1,800 | M32: 100% | N32: 100% | O32: 0% | P32: 1,800 | Q32: 1,800 | R32: 1,800
A33: 문화관광과 | B33: 자체 | C33: 예천공공도서관 도서자료 구입 지원 | D33: 경상북도립예천공공도서관 | E33: 교육기관에대한보조 | F33: 도서자료 구입 : 30,000 | G33: 20,000 | H33: 30,000 | I33: 30,000 | K33: 30,000 | M33: 100% | N33: 100% | O33: 0% | P33: 30,000 | Q33: 30,000 | R33: 30,000
A34: 문화관광과 | B34: 자체 | C34: 용문사 보광명전등 기단보수 및 주변정비 | D34: 대한불교조계종 용문사 | E34: 민간자본사업보조 | F34: 보광명전 1동,종각 1동 기단보수 및 주변정비 | H34: 300,000 | I34: 300,000 | K34: 300,000 | M34: 100% | N34: 100% | O34: 0% | P34: 300,000 | Q34: 300,000 | R34: 300,000
A35: 환경관리과 소계 | C35: =SUBTOTAL(103,C36:C36) -> 1 | G35: =SUBTOTAL(9,G36:G36) -> 0 | H35: 10,000 | I35: 10,000 | J35: 0 | K35: 10,000 | L35: 0 | M35: =N35+O35 -> 100% | N35: =I35/H35 -> 100% | O35: =L35/H35 -> 0% | P35: =SUBTOTAL(9,P36:P36) -> 10,000 | Q35: =SUBTOTAL(9,Q36:Q36) -> 10,000 | R35: =SUBTOTAL(9,R36:R36) -> 10,000
A36: 환경관리과 | B36: 자체 | C36: 청복1리 주민지원사업 | D36: 청복1리 쓰레기매립장 대책 위원회 | E36: 민간자본사업보조 | F36: 체력단련기구 지원 등 | H36: 10,000 | I36: 10,000 | K36: 10,000 | M36: =N36+O36 -> 100% | N36: =I36/H36 -> 100% | O36: =L36/H36 -> 0% | P36: =K36 -> 10,000 | Q36: =P36 -> 10,000 | R36: =Q36 -> 10,000
A37: 농정과 소계 | C37: =SUBTOTAL(103,C38:C49) -> 12 | G37: =SUBTOTAL(9,G38:G49) -> 281,213 | H37: 985,022 | I37: 676,311 | J37: 239,950 | K37: 436,361 | L37: 308,711 | M37: =H37/H37 -> 100% | N37: =I37/H37 -> 69% | O37: =L37/H37 -> 31% | P37: =SUBTOTAL(9,P38:P49) -> 436,361 | Q37: =SUBTOTAL(9,Q38:Q49) -> 436,361 | R37: =SUBTOTAL(9,R38:R49) -> 436,361
A38: 농정과 | B38: 보조 | C38: 녹색농촌체험마을 사무장 인센티브 지원 | D38: 김명화 | E38: 민간경상사업보조 | F38: 인센티브 지원 : 3,600 | H38: =I38+L38 -> 3,600 | I38: 3,600 | K38: =I38-J38 -> 3,600 | M38: =N38+O38 -> 100% | N38: =I38/H38 -> 100% | O38: =L38/H38 -> 0% | P38: =K38 -> 3,600 | Q38: =P38 -> 3,600 | R38: =Q38 -> 3,600
A39: 농정과 | B39: 보조 | C39: 녹색농촌체험마을 사무장 채용 | D39: 김명화외 4명(별지조서) | E39: 민간경상사업보조 | F39: 사무장 활동비 : 54,100 | G39: 57,600 | H39: =I39+L39 -> 54,100 | I39: 54,100 | J39: 43,200 | K39: =I39-J39 -> 10,900 | M39: =N39+O39 -> 100% | N39: 100% | O39: 0% | P39: =K39 -> 10,900 | Q39: =P39 -> 10,900 | R39: =Q39 -> 10,900
A40: 농정과 | B40: 보조 | C40: 농어촌 어린이 영어캠프 지원 | D40: 예천교육청에서 대상자 명단 별도송부 예정 | E40: 민간경상사업보조 | F40: 2,000,000원 * 20명 | H40: 40,000 | I40: 40,000 | K40: 40,000 | M40: 100% | N40: 100% | O40: 0% | P40: 40,000 | Q40: 40,000 | R40: 40,000
A41: 농정과 | B41: 보조 | C41: 농어촌 어린이 전화영어회화 지원 | D41: 예천교육청에서 대상자 명단 별도송부 예정 | E41: 민간자본사업보조 | F41: 400,000원 * 20명 | H41: 8,000 | I41: 8,000 | K41: 8,000 | M41: 100% | N41: 100% | O41: 0% | P41: 8,000 | Q41: 8,000 | R41: 8,000
A42: 농정과 | B42: 보조 | C42: 농촌유학센터 지원(시골살이 아이들) | D42: 시골살이 아이들 | E42: 민간경상사업보조 | F42: 31,200,000원 * 1식 | G42: 30,000 | H42: 31,200 | I42: 31,200 | J42: 30,000 | K42: 1,200 | M42: 100% | N42: =I42/H42 -> 100% | O42: =L42/H42 -> 0% | P42: 1,200 | Q42: 1,200 | R42: 1,200
A43: 농정과 | B43: 보조 | C43: 친환경퇴비생산시설현대화지원 | D43: 농업회사법인케이티지오연협 | E43: 민간자본사업보조 | F43: 300,000,000원 * 1개소 * 40% | H43: 300,000 | I43: 120,000 | K43: 120,000 | L43: 180,000 | M43: 100% | N43: 40% | O43: 60% | P43: 120,000 | Q43: 120,000 | R43: 120,000
A44: 농정과 | B44: 보조 | C44: 유기농업자재지원사업(유기자재) | D44: 용문 김원덕외 14명 (별지조서) | E44: 민간자본사업보조 | F44: 1,510,000원 * 32ha * 50% | G44: 9,640 | H44: 48,270 | I44: 24,135 | J44: 10,777 | K44: 13,358 | L44: 24,135 | M44: 100% | N44: 50% | O44: 50% | P44: 13,358 | Q44: 13,358 | R44: 13,358
A45: 농정과 | B45: 보조 | C45: 유기농업자재지원사업(녹비) | D45: 농협중앙회 경북지역본부 | E45: 민간자본사업보조 | F45: 352,000원 * 26ha * 50% | G45: 3,973 | H45: 9,152 | I45: 4,576 | J45: 3,973 | K45: 603 | L45: 4,576 | M45: 100% | N45: 50% | O45: 50% | P45: 603 | Q45: 603 | R45: 603
A46: 농정과 | B46: 자체 | C46: 농산물산지유통센터 상품화설비 보완 지원 | D46: 예천농업협동조합 | E46: 민간자본사업보조 | F46: 200,000,000원 * 1식 * 50% | H46: 200,000 | I46: 100,000 | K46: 100,000 | L46: 100,000 | M46: 100% | N46: 50% | O46: 50% | P46: 100,000 | Q46: 100,000 | R46: 100,000
A47: 농정과 | B47: 보조 | C47: 통합마케팅 조직육성 지원 | D47: 예천농협 예천군연합사업단 | E47: 민간경상사업보조 | F47: 290,000,000원 * 1식 * 62% | G47: 80,000 | H47: 180,700 | I47: 180,700 | J47: 152,000 | K47: 28,700 | M47: 100% | N47: 100% | O47: 0% | P47: 28,700 | Q47: 28,700 | R47: 28,700
A48: 농정과 | B48: 보조 | C48: 용궁순대축제 추진 행사비 지원 | D48: 용궁순대축제추진위원회 | E48: 민간행사사업보조 | F48: 100,000,000원 * 1식 | G48: 100,000 | H48: 100,000 | I48: 100,000 | K48: 100,000 | M48: 100% | N48: 100% | O48: 0% | P48: 100,000 | Q48: 100,000 | R48: 100,000
A49: 농정과 | B49: 보조 | C49: 귀농인 주거환경 개선 지원 | D49: 예천군 귀농인 연합회 | E49: 민간경상사업보조 | F49: 500,000원 * 20호 | H49: 10,000 | I49: 10,000 | K49: 10,000 | M49: 100% | N49: =I49/H49 -> 100% | O49: =L49/H49 -> 0% | P49: 10,000 | Q49: 10,000 | R49: 10,000
A50: 산림축산과 소계 | C50: =SUBTOTAL(103,C51:C54) -> 4 | G50: =SUBTOTAL(9,G51:G54) -> 312,896 | H50: 736,730 | I50: 458,456 | J50: 331,954 | K50: 126,502 | L50: 278,274 | M50: =N50+O50 -> 100% | N50: =I50/H50 -> 62% | O50: =L50/H50 -> 38% | P50: =SUBTOTAL(9,P51:P54) -> 126,502 | Q50: =SUBTOTAL(9,Q51:Q54) -> 126,502 | R50: =SUBTOTAL(9,R51:R54) -> 126,502
A51: 산림축산과 | B51: 보조 | C51: 공동방제단 인건비 지원 | D51: 예천축산업협동조합 | E51: 민간자본사업보조 | F51: 20,250,000원 * 7명 | G51: 138,950 | H51: =I51+L51 -> 141,750 | I51: 141,750 | J51: 138,950 | K51: 2,800 | M51: =N51+O51 -> 100% | N51: =I51/H51 -> 100% | O51: =L51/H51 -> 0% | P51: =K51 -> 2,800 | Q51: =P51 -> 2,800 | R51: 2,800
A52: 산림축산과 | B52: 보조 | C52: 돼지 써코바이러스 백신지원 | D52: 예천읍 김진국 외 21명 (기 심의) | E52: 민간자본사업보조 | F52: 2,000원 * 94,900두 * 60% | G52: 91,800 | H52: 189,800 | I52: 113,880 | J52: 77,304 | K52: 36,576 | L52: 75,920 | M52: 100% | N52: 60% | O52: 40% | P52: =K52 -> 36,576 | Q52: 36,576 | R52: 36,576
A53: 산림축산과 | B53: 보조 | C53: 구제역 백신구입(전업농) | D53: 예천축산업협동조합 | E53: 민간자본사업보조 | F53: 2,000원 * 202,000두 * 50% | G53: 81,586 | H53: 404,000 | I53: 202,000 | J53: 115,000 | K53: 87,000 | L53: 202,000 | M53: 100% | N53: 50% | O53: 50% | P53: 87,000 | Q53: 87,000 | R53: 87,000
A54: 산림축산과 | B54: 보조 | C54: 유우군 검정사업 | D54: 보문면 정세민 외 4명 (기 심의) | E54: 민간자본사업보조 | F54: 2,000원 * 590두 * 70% | G54: 560 | H54: 1,180 | I54: 826 | J54: 700 | K54: 126 | L54: 354 | M54: 100% | N54: 70% | O54: 30% | P54: 126 | Q54: 126 | R54: 126
A55: 건설교통과 소계 | C55: =SUBTOTAL(103,C56:C58) -> 3 | G55: =SUBTOTAL(9,G56:G58) -> 1,181,765 | H55: =SUBTOTAL(9,H56:H58) -> 1,343,959 | I55: 1,343,959 | J55: 1,151,765 | K55: 192,194 | L55: 0 | M55: =M56 -> 100% | N55: =N56 -> 100% | O55: 0% | P55: =SUBTOTAL(9,P56:P58) -> 192,194 | Q55: =SUBTOTAL(9,Q56:Q58) -> 192,194 | R55: 192,194
A56: 건설교통과 | B56: 보조 | C56: 농어촌버스 벽지노선 손실보상 | D56: (주)예천여객자동차 | E56: 운수업계보조금 | F56: 403,959,000원 * 1식 | G56: 401,765 | H56: =I56+L56 -> 403,959 | I56: 403,959 | J56: 401,765 | K56: =I56-J56 -> 2,194 | M56: =N56+O56 -> 100% | N56: =I56/H56 -> 100% | O56: =L56/H56 -> 0% | P56: =K56 -> 2,194 | Q56: =P56 -> 2,194 | R56: 2,194
A57: 건설교통과 | B57: 보조 | C57: 농어촌버스 비수익노선 결손보전 | D57: (주)예천여객자동차 | E57: 운수업계보조금 | F57: 870,000,000원 * 1식 | G57: 600,000 | H57: 870,000 | I57: 870,000 | J57: 750,000 | K57: 120,000 | M57: 100% | N57: 100% | O57: 0% | P57: =K57 -> 120,000 | Q57: 120,000 | R57: 120,000
A58: 건설교통과 | B58: 보조 | C58: 농어촌버스 공영버스 구입 | D58: (주)예천여객자동차 | E58: 운수업계보조금 | F58: 70,000,000원 * 1식 | G58: 180,000 | H58: 70,000 | I58: 70,000 | K58: 70,000 | M58: 100% | N58: 100% | O58: 0% | P58: 70,000 | Q58: 70,000 | R58: 70,000
A59: 건축도시과 소계 | C59: =SUBTOTAL(103,C60:C60) -> 1 | G59: =SUBTOTAL(9,G60:G60) -> 0 | H59: 30,000 | I59: 30,000 | J59: 0 | K59: 30,000 | L59: 0 | M59: =M60 -> 100% | N59: =N60 -> 100% | O59: 0% | P59: =SUBTOTAL(9,P60:P60) -> 30,000 | Q59: =SUBTOTAL(9,Q60:Q60) -> 30,000 | R59: =SUBTOTAL(9,R60:R60) -> 30,000
A60: 건축도시과 | B60: 보조 | C60: 옥외광고 디자인 전시회 | D60: (사)경상북도옥외광고협회 예천군지부 최팔성 | E60: 민간경상사업보조 | F60: 30,000,000원 * 1식 | H60: 30,000 | I60: 30,000 | K60: 30,000 | M60: 100% | N60: 100% | O60: 0% | P60: 30,000 | Q60: 30,000 | R60: 30,000
A61: 농업기술센터 소계 | C61: =SUBTOTAL(103,C62:C62) -> 1 | G61: =SUBTOTAL(9,G62:G62) -> 42,000 | H61: 80,500 | I61: 80,500 | J61: 42,000 | K61: 38,500 | L61: 0 | M61: =N61+O61 -> 100% | N61: =I61/H61 -> 100% | O61: =L61/H61 -> 0% | P61: =SUBTOTAL(9,P62:P62) -> 38,500 | Q61: =SUBTOTAL(9,Q62:Q62) -> 38,500 | R61: =SUBTOTAL(9,R62:R62) -> 38,500
A62: 농업기술센터 | B62: 자체 | C62: 무인헬기이용 병해충 공동방제 | D62: 예천농협(이달호) | E62: 민간자본사업보조 | F62: 농약 및 규산 350ha * 20 = 7,000 방제비 350ha * 90 = 31,500 | G62: 42,000 | H62: 80,500 | I62: 80,500 | J62: 42,000 | K62: =I62-J62 -> 38,500 | M62: =N62+O62 -> 100% | N62: =I62/H62 -> 100% | O62: =L62/H62 -> 0% | P62: =K62 -> 38,500 | Q62: =P62 -> 38,500 | R62: =Q62 -> 38,500
A63: 문화체육사업소 소계 | C63: =SUBTOTAL(103,C64:C72) -> 8 | G63: =SUBTOTAL(9,G64:G72) -> 186,600 | H63: 259,420 | I63: 259,420 | J63: 164,600 | K63: 94,820 | L63: 0 | M63: =O63+N63 -> 100% | N63: =I63/H63 -> 100.0% | O63: =L63/H63 -> 0.0% | P63: =SUBTOTAL(9,P64:P72) -> 94,820 | Q63: =SUBTOTAL(9,Q64:Q72) -> 94,820 | R63: =SUBTOTAL(9,R64:R72) -> 94,820
A64: 문화체육사업소 | B64: 보조 | C64: 제2회 예천도효자배 전국 중고단축마라통대회 개최경비 지원 | D64: 한국중고육상경기연맹 | E64: 민간경상사업보조 | F64: 10,000천원 * 1식 = 10,000천원 | G64: 60,000 | H64: =I64+L64 -> 60,000 | I64: 60,000 | J64: 50,000 | K64: =I64-J64 -> 10,000 | M64: 100% | N64: 100% | P64: 10,000 | Q64: =P64 -> 10,000 | R64: =Q64 -> 10,000
A65: 문화체육사업소 | B65: 자체 | C65: 실업대항 육상대회 개최경비 지원 | D65: 한국실업육상경기연맹 | E65: 민간경상사업보조 | F65: 10,000천원 * 1식 = 10,000천원 | G65: 50,000 | H65: 50,000 | I65: 50,000 | J65: 40,000 | K65: 10,000 | M65: 100% | N65: 100% | P65: 10,000 | Q65: =P65 -> 10,000 | R65: =Q65 -> 10,000
A66: 문화체육사업소 | B66: 자체 | C66: 대학대항 육상대회 개최경비 지원 | D66: 한국대학육상경기연맹 | E66: 민간경상사업보조 | F66: 20,000천원 * 1식 = 20,000천원 | G66: 20,000 | H66: 60,000 | I66: 60,000 | J66: 40,000 | K66: 20,000 | M66: 100% | N66: 100% | P66: 20,000 | Q66: 20,000 | R66: 20,000
A67: 문화체육사업소 | B67: 자체 | C67: 양궁대회 및 전지훈련 유치활동 지원 | D67: 경북양궁협회 | E67: 민간경상사업보조 | F67: 10,000천원 * 1식 = 10,000천원 | G67: 15,000 | H67: 25,000 | I67: 25,000 | J67: 15,000 | K67: 10,000 | M67: 100% | N67: 100% | P67: =K67 -> 10,000 | Q67: 10,000 | R67: 10,000
A68: 문화체육사업소 | B68: 자체 | C68: 예천군체육회 사무국장 인건비 지원 | D68: 예천군체육회 | E68: 민간단체법정운영비보조 | F68: 14,600천원 * 1식 = 14,600천원 | G68: 27,600 | H68: 26,500 | I68: 26,500 | J68: 11,900 | K68: 14,600 | M68: 100% | N68: 100% | P68: =K68 -> 14,600 | Q68: 14,600 | R68: 14,600
A69: 문화체육사업소 | B69: 자체 | C69: 예천군체육회 간사 인건비 지원 | D69: 예천군체육회 | E69: 민간단체법정운영비보조 | F69: 8,600천원 * 1식 - 8,600천원 | G69: 14,000 | H69: 16,300 | I69: 16,300 | J69: 7,700 | K69: 8,600 | M69: 100% | N69: 100% | P69: =K69 -> 8,600 | Q69: 8,600 | R69: 8,600
A70: 문화체육사업소 | B70: 자체 | C70: 예천군체육회 팀장 인건비 지원 | D70: 예천군체육회 | E70: 민간단체법정운영비보조 | F70: 1,000천원 * 2명 * 9월 = 18,000천원 | H70: 18,000 | I70: 18,000 | K70: 18,000 | M70: 100% | N70: 100% | P70: =K70 -> 18,000 | Q70: 18,000 | R70: 18,000
A71: 문화체육사업소 | B71: 자체 | C71: 예천군체육회 사무국장 인건비 지원 | D71: 예천군체육회 | E71: 민간단체법정운영비보조 | F71: 3,620천원 * 1식 = 3,620천원 | H71: 3,620 | I71: 3,620 | K71: 3,620 | M71: 100% | N71: 100% | P71: 3,620 | Q71: 3,620 | R71: 3,620

Sheet 공모대상
A1: 제3회 예천군 보조금심의위원회 추경편성심의 조서(공모대상)
Q2: (단위 : 천원)
A3: 부서명 | B3: 사업 분류 | C3: 보 조 사 업 명 | D3: 보 조 사 업 자 | E3: 과목명 | F3: 사 업 내 용 | G3: 2015년 지원액 | H3: 16년 신청액 | M3: 재원비율 | P3: 검토조정액 | R3: 심의조정액
H4: 계 | I4: 보조금 | L4: 자부담 | M4: 계 | N4: 보조금 | O4: 자부담 | P4: 1차(해당부서) | Q4: 2차(예산부서) | R4: 3차(위원회)
I5: 경정액 | J5: 기정액 | K5: 증감액
A6: 계 | C6: =SUBTOTAL(103,C7:C938) -> 11 | G6: =SUBTOTAL(9,G7:G938) -> 1,761,000 | H6: 2,023,620 | I6: 1,397,701 | J6: 749,000 | K6: 648,701 | L6: 625,919 | M6: =N6+O6 -> 100% | N6: =I6/H6 -> 69% | O6: =L6/H6 -> 31% | P6: =SUBTOTAL(9,P7:P938) -> 648,701 | Q6: =SUBTOTAL(9,Q7:Q938) -> 648,701 | R6: =SUBTOTAL(9,R7:R938) -> 648,701
A7: 기획감사실 소계 | C7: =SUBTOTAL(103,C8:C9) -> 2 | G7: =SUBTOTAL(9,G8:G9) -> 97,000 | H7: =SUBTOTAL(9,H8:H9) -> 103,000 | I7: 103,000 | J7: 40,000 | K7: 63,000 | L7: 0 | M7: 100% | N7: 100% | O7: 0% | P7: =SUBTOTAL(9,P8:P9) -> 63,000 | Q7: 63,000 | R7: 63,000
A8: 기획감사실 | B8: 자체 | C8: 지역정체성 확립사업 지원 | E8: 민간경상사업보조 | F8: 책자발간 : 17,000 회의비 및 관리비 : 6,000 | G8: 57,000 | H8: =I8+L8 -> 23,000 | I8: 23,000 | K8: =I8-J8 -> 23,000 | M8: =N8+O8 -> 100% | N8: =I8/H8 -> 100% | O8: =L8/H8 -> 0% | P8: =K8 -> 23,000 | Q8: =P8 -> 23,000 | R8: 23,000
A9: 기획감사실 | B9: 자체 | C9: 각종 권장사업 경비 지원 | E9: 민간경상사업보조 | F9: 문화,체육,예술분야 등 지원 | G9: 40,000 | H9: 80,000 | I9: 80,000 | J9: 40,000 | K9: 40,000 | M9: 100% | N9: 100% | O9: 0% | P9: =K9 -> 40,000 | Q9: 40,000 | R9: 40,000
A10: 주민복지과 소계 | C10: =SUBTOTAL(103,C11:C12) -> 2 | G10: =SUBTOTAL(9,G11:G12) -> 360,000 | H10: 274,740 | I10: 274,740 | J10: 200,000 | K10: 74,740 | L10: 0 | M10: =O10+N10 -> 100% | N10: =I10/H10 -> 100.0% | O10: =L10/H10 -> 0.0% | P10: =SUBTOTAL(9,P11:P12) -> 74,740 | Q10: =SUBTOTAL(9,Q11:Q12) -> 74,740 | R10: =SUBTOTAL(9,R11:R12) -> 74,740
A11: 주민복지과 | B11: 자체 | C11: 경로당 보수 | E11: 민간자본사업보조 | F11: 경로당 보수 : 10,000 * 6개소 | G11: 360,000 | H11: =I11+L11 -> 260,000 | I11: 260,000 | J11: 200,000 | K11: =I11-J11 -> 60,000 | M11: =N11+O11 -> 100% | N11: =I11/H11 -> 100% | O11: =L11/H11 -> 0% | P11: =K11 -> 60,000 | Q11: =P11 -> 60,000 | R11: =Q11 -> 60,000
A12: 주민복지과 | B12: 보조 | C12: 경로당 안전관리 CCTV 설치 | E12: 민간자본사업보조 | F12: CCTV설치 : 335 * 44개소 | H12: =I12+L12 -> 14,740 | I12: 14,740 | K12: =I12-J12 -> 14,740 | M12: =N12+O12 -> 100% | N12: 100% | O12: =L12/H12 -> 0% | P12: =K12 -> 14,740 | Q12: =P12 -> 14,740 | R12: 14,740
A13: 환경관리과 소계 | C13: =SUBTOTAL(103,C14:C14) -> 1 | G13: =SUBTOTAL(9,G14:G14) -> 72,000 | H13: =SUBTOTAL(9,H14:H14) -> 123,333 | I13: =SUBTOTAL(9,I14:I14) -> 74,000 | J13: =SUBTOTAL(9,J14:J14) -> 54,000 | K13: =SUBTOTAL(9,K14:K14) -> 20,000 | L13: =SUBTOTAL(9,L14) -> 49,333 | M13: =M14 -> 100% | N13: =N14 -> 60% | O13: 40% | P13: =SUBTOTAL(9,P14:P14) -> 20,000 | Q13: =SUBTOTAL(9,Q14:Q14) -> 20,000 | R13: =SUBTOTAL(9,R14) -> 20,000
A14: 환경관리과 | B14: 보조 | C14: 야생동물 피해예방시설 설치 지원 | E14: 민간자본사업보조 | F14: 1,800,000원 * 41식 | G14: 72,000 | H14: =I14+L14 -> 123,333 | I14: 74,000 | J14: 54,000 | K14: 20,000 | L14: 49,333 | M14: =N14+O14 -> 100% | N14: =I14/H14 -> 60% | O14: =L14/H14 -> 40% | P14: =K14 -> 20,000 | Q14: =P14 -> 20,000 | R14: =Q14 -> 20,000
A15: 농정과 소계 | C15: =SUBTOTAL(103,C16:C17) -> 2 | G15: =SUBTOTAL(9,G16:G17) -> 1,052,000 | H15: 1,111,000 | I15: 599,000 | J15: 395,000 | K15: 204,000 | L15: 512,000 | M15: =H15/H15 -> 100% | N15: =I15/H15 -> 54% | O15: =L15/H15 -> 46% | P15: =SUBTOTAL(9,P16:P17) -> 204,000 | Q15: =SUBTOTAL(9,Q16:Q17) -> 204,000 | R15: =SUBTOTAL(9,R16:R17) -> 204,000
A16: 농정과 | B16: 보조 | C16: 벼 육묘공장 설치(소규모) | E16: 민간자본사업보조 | F16: 42,000,000원 * 23동 * 50% | G16: 972,000 | H16: =I16+L16 -> 966,000 | I16: 483,000 | J16: 315,000 | K16: =I16-J16 -> 168,000 | L16: 483,000 | M16: =N16+O16 -> 100% | N16: =I16/H16 -> 50% | O16: =L16/H16 -> 50% | P16: =K16 -> 168,000 | Q16: =P16 -> 168,000 | R16: 168,000
A17: 농정과 | B17: 자체 | C17: 귀농인 영농기반 지원 | E17: 민간자본사업보조 | F17: 5,000,000원 * 29농가 * 80% | G17: 80,000 | H17: 145,000 | I17: 116,000 | J17: 80,000 | K17: 36,000 | L17: 29,000 | M17: 100% | N17: =I17/H17 -> 80% | O17: =L17/H17 -> 20% | P17: 36,000 | Q17: 36,000 | R17: 36,000
A18: 산림축산과 소계 | C18: =SUBTOTAL(103,C19:C20) -> 2 | G18: =SUBTOTAL(9,G19:G20) -> 0 | H18: 211,547 | I18: 146,961 | J18: 0 | K18: 146,961 | L18: 64,586 | M18: =N18+O18 -> 100% | N18: =I18/H18 -> 69% | O18: =L18/H18 -> 31% | P18: =SUBTOTAL(9,P19:P20) -> 146,961 | Q18: =SUBTOTAL(9,Q19:Q20) -> 146,961 | R18: =SUBTOTAL(9,R19:R20) -> 146,961
A19: 산림축산과 | B19: 보조 | C19: 액비저장조 지원 | E19: 민간자본사업보조 | F19: 205,936,000원 * 1식 * 70% | H19: =I19+L19 -> 205,937 | I19: 144,156 | K19: 144,156 | L19: 61,781 | M19: =N19+O19 -> 100% | N19: =I19/H19 -> 70% | O19: =L19/H19 -> 30% | P19: =K19 -> 144,156 | Q19: =P19 -> 144,156 | R19: 144,156
A20: 산림축산과 | B20: 보조 | C20: 신품종벌보급용 벌통지원사업(187군) | E20: 민간자본사업보조 | F20: 30,000원 * 187군 * 50% | H20: 5,610 | I20: 2,805 | K20: 2,805 | L20: 2,805 | M20: 100% | N20: 50% | O20: 50% | P20: 2,805 | Q20: 2,805 | R20: 2,805
A21: 농업기술센터 소계 | C21: =SUBTOTAL(103,C22:C23) -> 2 | G21: =SUBTOTAL(9,G22:G23) -> 180,000 | H21: 200,000 | I21: 200,000 | J21: 60,000 | K21: 140,000 | L21: 0 | M21: =M22 -> 100% | N21: =N22 -> 100% | O21: 0% | P21: =SUBTOTAL(9,P22:P23) -> 140,000 | Q21: =SUBTOTAL(9,Q22:Q23) -> 140,000 | R21: =SUBTOTAL(9,R22:R23) -> 140,000
A22: 농업기술센터 | B22: 보조 | C22: 들녘별 쌀경영체 연계 보리·밀 재배단지 조성시범 | E22: 민간자본사업보조 | F22: 저온저장고 신축 - 165m2 * 2동 = 70,000 엿기름 가공시설 - 66m2 * 1동 = 30,000 | G22: 100,000 | H22: =I22+L22 -> 100,000 | I22: 100,000 | K22: 100,000 | M22: =N22+O22 -> 100% | N22: =I22/H22 -> 100% | O22: =L22/H22 -> 0% | P22: =K22 -> 100,000 | Q22: =P22 -> 100,000 | R22: =Q22 -> 100,000
A23: 농업기술센터 | B23: 자체 | C23: 농심나눔쉼터 조성 | E23: 민간자본사업보조 | F23: 10,000 * 4개소 | G23: 80,000 | H23: =I23+L23 -> 100,000 | I23: 100,000 | J23: 60,000 | K23: =I23-J23 -> 40,000 | M23: =N23+O23 -> 100% | N23: 100% | O23: 0% | P23: =K23 -> 40,000 | Q23: =P23 -> 40,000 | R23: 40,000
